bitfinex-derivatives/quotes_BTCF0:USTF0_20250620
["timestamp","ask_amount","ask_price","bid_price","bid_amount"]
[1750409959556,0.34194497,106060.0,106050.0,1.78878062]
[1750409960056,0.34194497,106060.0,106050.0,1.54462587]
[1750409960355,0.34194497,106060.0,106050.0,1.78878062]
[1750409960561,0.34194497,106060.0,106050.0,1.54462587]
[1750409960755,0.34194497,106060.0,106050.0,1.78878062]
[1750409961756,0.34194497,106060.0,106050.0,1.42798062]
[1750409961955,0.34194497,106060.0,106050.0,1.78878062]
[1750409962155,0.34194497,106060.0,106050.0,1.15788022]
[1750409962351,0.34194497,106060.0,106050.0,1.67786022]
[1750409962655,0.43834497,106060.0,106050.0,1.67786022]
[1750409963249,0.36319642,106060.0,106050.0,1.67786022]
[1750409964355,0.36319642,106060.0,106050.0,1.43370547]
[1750409964558,0.36319642,106060.0,106050.0,1.46580547]
[1750409964750,0.36319642,106060.0,106050.0,1.70996022]
[1750409966061,0.45738313,106060.0,106050.0,1.70996022]
[1750409966258,0.36319642,106060.0,106050.0,1.70996022]
[1750409966858,0.45738313,106060.0,106050.0,1.70996022]
[1750409967257,0.43844165,106060.0,106050.0,1.70988022]
[1750409967860,0.40524165,106060.0,106050.0,1.70988022]
[1750409968048,0.40524165,106060.0,106050.0,1.46572547]
[1750409968563,0.40524165,106060.0,106050.0,1.70988022]
[1750409969260,0.34204165,106060.0,106050.0,1.74248022]
[1750409969557,0.34164165,106060.0,106050.0,1.74248022]
[1750409969762,0.34204165,106060.0,106050.0,1.74248022]
[1750409970259,0.34210196,106060.0,106050.0,1.74248022]
[1750409971258,0.26679642,106060.0,106050.0,1.49832547]
[1750409971457,0.26679642,106060.0,106050.0,1.74248022]
[1750409972258,0.36098313,106060.0,106050.0,1.74248022]
[1750409974163,0.29869642,106060.0,106050.0,1.74248022]
[1750409976862,0.29869642,106060.0,106050.0,1.70988022]
[1750409977858,0.39288313,106060.0,106050.0,1.70988022]
[1750409980263,0.41524266,106060.0,106050.0,1.70988022]
[1750409980766,0.44714266,106060.0,106050.0,1.70988022]
[1750409980967,0.44714266,106060.0,106050.0,1.12628022]
[1750409981168,0.44714266,106060.0,106050.0,0.28561547]
[1750409981366,0.44714266,106060.0,106050.0,1.02548517]
[1750409981670,0.44714266,106060.0,106050.0,0.93137006]
[1750409982366,0.42478313,106060.0,106050.0,0.93137006]
[1750409983465,0.33059642,106060.0,106050.0,0.93137006]
[1750409983667,0.46211279,106060.0,106050.0,0.93137006]
[1750409986169,0.46211279,106060.0,106050.0,0.34797006]
[1750409986364,0.1885697,106050.0,106040.0,1.03180585]
[1750409986570,0.35301484,106050.0,106040.0,1.61512585]
[1750409986868,0.35301484,106050.0,106040.0,2.01970118]
[1750409987560,0.35301484,106050.0,106040.0,2.02170118]
[1750409987966,0.35401484,106050.0,106040.0,1.97755478]
[1750409988166,0.35401484,106050.0,106040.0,1.93040908]
[1750409988368,0.35401484,106050.0,106040.0,1.88326598]
[1750409988772,0.38401484,106050.0,106040.0,1.88326598]
[1750409990175,0.6286797,106050.0,106040.0,1.02218112]
[1750409990374,0.6286797,106050.0,106040.0,1.29799626]
[1750409990578,0.6604797,106050.0,106040.0,1.54266112]
[1750409991276,0.6604797,106050.0,106040.0,0.61140786]
[1750409991462,0.6604797,106050.0,106040.0,1.17263579]
[1750409991463,0.41581484,106050.0,106040.0,1.17263579]
[1750409991963,0.6604797,106050.0,106040.0,1.17263579]
[1750409992166,0.41581484,106050.0,106040.0,1.17263579]
[1750409992366,0.41581484,106050.0,106040.0,1.41730065]
[1750409992569,0.2837697,106050.0,106040.0,1.44800065]
[1750409993271,0.37843251,106050.0,106040.0,1.44800065]
[1750409994076,0.62309737,106050.0,106040.0,1.44800065]
[1750409994665,0.37843251,106050.0,106040.0,1.44800065]
[1750409994871,0.34663251,106050.0,106040.0,1.20661151]
[1750409995679,0.34663251,106050.0,106040.0,1.20657151]
[1750409996478,0.34663251,106050.0,106040.0,1.56737151]
[1750409998671,0.34663251,106050.0,106040.0,1.20657151]
[1750409998871,0.37743251,106050.0,106040.0,1.20657151]
[1750410000181,0.34663251,106050.0,106040.0,1.20657151]
[1750410000879,0.2223698,106050.0,106040.0,1.59897151]
[1750410001076,0.2219698,106050.0,106040.0,1.59897151]
[1750410001278,0.1899698,106050.0,106040.0,1.59897151]
[1750410001578,0.0014,106050.0,106040.0,1.59897151]
[1750410001780,0.1899698,106050.0,106040.0,1.59897151]
[1750410001974,0.0014,106050.0,106040.0,1.59897151]
[1750410002275,0.09566281,106050.0,106040.0,1.94961189]
[1750410002480,0.0014,106050.0,106040.0,1.94961189]
[1750410002684,0.001,106050.0,106040.0,1.94961189]
[1750410002877,0.07638539,106050.0,106040.0,1.94961189]
[1750410003072,0.001,106050.0,106040.0,2.13821189]
[1750410003275,0.07638375,106050.0,106040.0,2.13821189]
[1750410003477,0.0990903,106050.0,106040.0,2.13821189]
[1750410003781,0.0990903,106050.0,106040.0,1.94961189]
[1750410003975,0.0990903,106050.0,106040.0,2.13821189]
[1750410004181,0.0986903,106050.0,106040.0,1.94961189]
[1750410004480,0.0990903,106050.0,106040.0,1.94961189]
[1750410004674,0.02370655,106050.0,106040.0,2.38289554]
[1750410005068,0.02330655,106050.0,106040.0,2.38289554]
[1750410005275,0.62412281,106080.0,106070.0,0.1885342]
[1750410005474,0.7497764,106080.0,106070.0,1.38541185]
[1750410005784,0.75404749,106080.0,106070.0,1.41611185]
[1750410005984,0.75404749,106080.0,106070.0,1.1714282]
[1750410006281,0.84822148,106080.0,106070.0,1.2031282]
[1750410006483,0.53165994,106080.0,106070.0,1.2041282]
[1750410006779,0.68887644,106080.0,106070.0,1.2352282]
[1750410006980,0.13597399,106080.0,106070.0,1.48091185]
[1750410007283,0.29309049,106080.0,106070.0,1.84163185]
[1750410007479,0.3678754,106080.0,106070.0,1.84163185]
[1750410007682,0.27370141,106080.0,106070.0,1.84163185]
[1750410008583,0.27370141,106080.0,106070.0,1.5969482]
[1750410008781,0.30600141,106080.0,106070.0,1.5969482]
[1750410009280,0.30600141,106080.0,106070.0,1.43754784]
[1750410009486,0.30600141,106080.0,106070.0,1.5969482]
[1750410009686,0.30600141,106080.0,106070.0,1.3022482]
[1750410009886,0.30600141,106080.0,106070.0,1.54693185]
[1750410010087,0.27370141,106080.0,106070.0,1.54693185]
[1750410010681,0.27330141,106080.0,106070.0,1.54693185]
[1750410010886,0.27370141,106080.0,106070.0,1.54693185]
[1750410011186,0.27330141,106080.0,106070.0,1.54693185]
[1750410011483,0.27370141,106080.0,106070.0,1.54693185]
[1750410011882,0.08518491,106080.0,106070.0,1.54693185]
[1750410012284,0.27370131,106080.0,106070.0,1.84163185]
[1750410012483,0.27370131,106080.0,106070.0,1.83243484]
[1750410015389,0.34887798,106080.0,106070.0,1.83243484]
[1750410015594,0.34887798,106080.0,106070.0,1.58775119]
[1750410015785,0.34887798,106080.0,106070.0,1.83243484]
[1750410020483,0.08557667,106080.0,106070.0,1.83243484]
[1750410020890,0.27409307,106080.0,106070.0,1.83243484]
[1750410021189,0.27369307,106080.0,106070.0,1.83243484]
[1750410021492,0.27409307,106080.0,106070.0,1.83243484]
[1750410021895,0.08557667,106080.0,106070.0,1.83243484]
[1750410022191,0.27409307,106080.0,106070.0,1.83243484]
[1750410022389,0.27409307,106080.0,106070.0,1.58775119]
[1750410022589,0.27409307,106080.0,106070.0,1.83243484]
[1750410022791,0.08557667,106080.0,106070.0,1.83243484]
[1750410022991,0.27409307,106080.0,106070.0,1.83243484]
[1750410023183,0.1989164,106080.0,106070.0,1.83243484]
[1750410023579,0.0104,106080.0,106070.0,1.83243484]
[1750410024088,0.0104,106080.0,106070.0,1.82323829]
[1750410024493,0.0904,106080.0,106070.0,2.15323829]
[1750410024796,0.18457399,106080.0,106070.0,2.15323829]
[1750410025091,0.0904,106080.0,106070.0,2.15323829]
[1750410026194,0.18457399,106080.0,106070.0,2.15323829]
[1750410027488,0.18457399,106080.0,106070.0,1.85853829]
[1750410027686,0.18457399,106080.0,106070.0,2.10322194]
[1750410028104,0.18417399,106080.0,106070.0,2.10322194]
[1750410028291,0.16519001,106080.0,106070.0,2.10322194]
[1750410028597,0.16559001,106080.0,106070.0,2.39792194]
[1750410029194,0.0904,106080.0,106070.0,2.39792194]
[1750410029396,0.16560478,106080.0,106070.0,2.39792194]
[1750410029594,0.0904,106080.0,106070.0,2.39792194]
[1750410029895,0.0904,106080.0,106070.0,2.58646594]
[1750410029896,0.16562945,106080.0,106070.0,2.58646594]
[1750410031391,0.16562945,106080.0,106070.0,2.29176594]
[1750410031590,0.0904,106080.0,106070.0,2.29176594]
[1750410032392,0.18457399,106080.0,106070.0,2.29176594]
[1750410032583,0.0904,106080.0,106070.0,2.65256594]
[1750410032795,0.0904,106080.0,106070.0,2.06964594]
[1750410032997,0.18457399,106080.0,106070.0,2.54464229]
[1750410033197,0.16566396,106080.0,106070.0,2.54464229]
[1750410033893,0.16566396,106080.0,106070.0,2.78932594]
[1750410036001,0.16566396,106080.0,106070.0,2.78013018]
[1750410037402,0.16566396,106080.0,106070.0,2.21544653]
[1750410037598,0.16566396,106080.0,106070.0,2.52544653]
[1750410038903,0.16566396,106080.0,106070.0,2.77013018]
[1750410040294,0.0904,106080.0,106070.0,2.77013018]
[1750410040694,0.09,106080.0,106070.0,2.77013018]
[1750410040895,0.07526396,106090.0,106080.0,0.1885164]
[1750410041100,0.07526396,106090.0,106080.0,1.62071456]
[1750410041897,0.07566396,106090.0,106080.0,1.80924256]
[1750410042095,0.07526396,106090.0,106080.0,1.80924256]
[1750410042297,0.07966396,106090.0,106080.0,1.81024256]
[1750410043209,0.0044,106090.0,106080.0,1.81024256]
[1750410044403,0.06085002,106090.0,106080.0,1.81024256]
[1750410044601,0.05785002,106090.0,106080.0,1.80924256]
[1750410044908,0.05785002,106090.0,106080.0,1.81324256]
[1750410045106,0.05745002,106090.0,106080.0,1.81324256]
[1750410045405,0.05785002,106090.0,106080.0,1.81324256]
[1750410050006,0.05785002,106090.0,106080.0,1.59151456]
[1750410050207,0.05785002,106090.0,106080.0,1.70254987]
[1750410050512,0.0987,106090.0,106080.0,2.30152498]
[1750410050997,0.0987,106090.0,106080.0,1.87694498]
[1750410051202,0.0987,106090.0,106080.0,2.31896133]
[1750410051412,0.0987,106090.0,106080.0,2.56364498]
[1750410053010,0.0987,106090.0,106080.0,1.35527768]
[1750410053211,0.0987,106090.0,106080.0,2.56364498]
[1750410054815,0.0987,106090.0,106080.0,1.84464498]
[1750410055017,0.0987,106090.0,106080.0,2.56364498]
[1750410058512,0.17396396,106090.0,106080.0,2.56364498]
[1750410060912,0.10836396,106090.0,106080.0,2.56364498]
[1750410061114,0.14006396,106090.0,106080.0,2.56949474]
[1750410062608,0.0952,106090.0,106080.0,1.37083109]
[1750410062911,0.17046396,106090.0,106080.0,1.65785109]
[1750410063108,0.0952,106090.0,106080.0,0.92675035]
[1750410063312,0.0952,106090.0,106080.0,0.90446999]
[1750410063313,0.35900907,106090.0,106080.0,0.90446999]
[1750410063518,0.35900907,106090.0,106080.0,1.48618999]
[1750410064011,0.35900907,106090.0,106080.0,1.34906999]
[1750410064518,0.35900907,106090.0,106080.0,1.10438634]
[1750410064718,0.35900907,106090.0,106080.0,1.34906999]
[1750410064911,0.35900907,106090.0,106080.0,1.59335208]
[1750410066808,0.35900907,106090.0,106080.0,1.34886839]
[1750410067616,0.35900917,106090.0,106080.0,1.34886839]
[1750410068813,0.35900917,106090.0,106080.0,1.64356839]
[1750410069318,0.35900917,106090.0,106080.0,1.06184839]
[1750410069519,0.35900917,106090.0,106080.0,1.64348839]
[1750410073020,0.35900917,106090.0,106080.0,1.06184839]
[1750410073318,0.6444988,106090.0,106080.0,1.28264839]
[1750410073518,0.1885166,106080.0,106070.0,0.1413917]
[1750410073712,0.1885343,106070.0,106060.0,0.3299372]
[1750410073914,0.2836343,106070.0,106060.0,0.2828014]
[1750410074112,0.2836343,106070.0,106060.0,1.10884345]
[1750410074910,0.2846343,106070.0,106060.0,1.11384345]
[1750410075114,0.2846343,106070.0,106060.0,0.53228345]
[1750410075314,0.2846343,106070.0,106060.0,1.11384345]
[1750410075623,0.2846343,106070.0,106060.0,1.11684345]
[1750410075923,0.2836343,106070.0,106060.0,1.11184345]
[1750410076120,0.2846343,106070.0,106060.0,1.11284345]
[1750410076714,0.2846343,106070.0,106060.0,1.11288345]
[1750410077116,0.29411336,106070.0,106060.0,1.11288345]
[1750410077423,0.29511336,106070.0,106060.0,1.10988345]
[1750410078519,0.29511336,106070.0,106060.0,0.8654014]
[1750410078825,0.29511336,106070.0,106060.0,1.10988345]
[1750410079021,0.2856343,106070.0,106060.0,1.10988345]
[1750410079222,0.2279947,106070.0,106060.0,1.47068345]
[1750410079418,0.2092051,106070.0,106060.0,1.69548381]
[1750410079718,0.07715344,106070.0,106060.0,2.01548381]
[1750410079924,0.07755344,106070.0,106060.0,2.01548381]
[1750410080316,0.07755344,106070.0,106060.0,2.31018381]
[1750410080629,0.07715344,106070.0,106060.0,2.31018381]
[1750410080828,0.07755344,106070.0,106060.0,2.31018381]
[1750410081018,0.0024,106070.0,106060.0,2.31018381]
[1750410081213,0.002,106070.0,106060.0,2.31018381]
[1750410081419,0.0024,106070.0,106060.0,2.31018381]
[1750410081621,0.05876767,106070.0,106060.0,2.31018381]
[1750410083324,0.0024,106070.0,106060.0,2.31018381]
[1750410085627,0.05876767,106070.0,106060.0,2.12690381]
[1750410085824,0.05876767,106070.0,106060.0,2.48690381]
[1750410086421,0.05876767,106070.0,106060.0,2.45690381]
[1750410086620,0.05876767,106070.0,106060.0,1.51326381]
[1750410086816,0.2541343,106070.0,106060.0,2.09470381]
[1750410087325,0.32928774,106070.0,106060.0,2.09470381]
[1750410088031,0.32928774,106070.0,106060.0,2.06150381]
[1750410090223,0.32928774,106070.0,106060.0,1.34318381]
[1750410090729,0.32928774,106070.0,106060.0,1.92458381]
[1750410091720,0.14075344,106070.0,106060.0,1.92458381]
[1750410091920,0.14075344,106070.0,106060.0,1.95528381]
[1750410092424,0.10795344,106070.0,106060.0,1.66058381]
[1750410092629,0.10755344,106070.0,106060.0,1.66058381]
[1750410092922,0.10795344,106070.0,106060.0,1.66058381]
[1750410093324,0.0328,106070.0,106060.0,1.66058381]
[1750410094229,0.10795344,106070.0,106060.0,1.66058381]
[1750410094432,0.0328,106070.0,106060.0,1.66058381]
[1750410095931,0.0328,106070.0,106060.0,1.69348381]
[1750410098432,0.05517764,106070.0,106060.0,1.98818381]
[1750410099233,0.05517764,106070.0,106060.0,2.12494381]
[1750410101034,0.02437764,106070.0,106060.0,2.12494381]
[1750410101235,0.02477764,106070.0,106060.0,2.50494381]
[1750410101436,0.08120851,106070.0,106060.0,2.50494381]
[1750410102237,0.08120851,106070.0,106060.0,1.88046176]
[1750410102432,0.02477764,106070.0,106060.0,2.12494381]
[1750410104543,0.09993108,106070.0,106060.0,2.12494381]
[1750410106042,0.13223108,106070.0,106060.0,2.12494381]
[1750410107044,0.13223108,106070.0,106060.0,2.11574664]
[1750410107834,0.13223108,106070.0,106060.0,1.25708459]
[1750410108036,0.13223108,106070.0,106060.0,2.08284664]
[1750410108237,0.16363108,106070.0,106060.0,2.08284664]
[1750410110741,0.16363108,106070.0,106060.0,1.50156664]
[1750410111046,0.16363108,106070.0,106060.0,2.08280664]
[1750410112339,0.16363108,106070.0,106060.0,1.83832459]
[1750410112646,0.16363108,106070.0,106060.0,2.08280664]
[1750410112846,0.16363108,106070.0,106060.0,2.11280664]
[1750410113047,0.16363108,106070.0,106060.0,2.28280664]
[1750410113346,0.08847764,106070.0,106060.0,2.08280664]
[1750410113644,0.08847764,106070.0,106060.0,2.29280664]
[1750410113945,0.08847764,106070.0,106060.0,2.08280664]
[1750410114138,0.05707764,106070.0,106060.0,2.08280664]
[1750410114338,0.05707764,106070.0,106060.0,2.41280664]
[1750410114640,0.1510272,106070.0,106060.0,2.44280664]
[1750410115040,0.05707764,106070.0,106060.0,2.44280664]
[1750410115744,0.05707764,106070.0,106060.0,2.47490664]
[1750410116046,0.05707764,106070.0,106060.0,1.75678664]
[1750410116346,0.05707764,106070.0,106060.0,2.47474664]
[1750410117041,1e-08,106070.0,106060.0,2.71922869]
[1750410117348,0.2267947,106090.0,106080.0,0.1885166]
[1750410117349,0.12526908,106090.0,106080.0,0.1885166]
[1750410117547,0.12526908,106090.0,106080.0,1.69399353]
[1750410117746,0.12446908,106090.0,106080.0,1.72419353]
[1750410117941,0.12446908,106090.0,106080.0,1.47971148]
[1750410118150,0.12446908,106090.0,106080.0,1.72419353]
[1750410118549,0.12486908,106090.0,106080.0,1.47971148]
[1750410118746,0.12546908,106090.0,106080.0,1.49071148]
[1750410119048,0.15606908,106090.0,106080.0,1.48071148]
[1750410119755,0.16006908,106090.0,106080.0,1.48171148]
[1750410120150,0.12986908,106090.0,106080.0,1.48171148]
[1750410120449,0.12986908,106090.0,106080.0,1.75649353]
[1750410120649,0.10126908,106090.0,106080.0,2.05119353]
[1750410120842,0.10166908,106090.0,106080.0,2.53791353]
[1750410121046,0.007,106090.0,106080.0,2.53791353]
[1750410121243,0.10126908,106090.0,106080.0,2.53791353]
[1750410121549,0.0074,106090.0,106080.0,2.53791353]
[1750410122548,0.0074,106090.0,106080.0,2.54744433]
[1750410123048,0.0074,106090.0,106080.0,2.90824433]
[1750410123350,0.007,106090.0,106080.0,2.90824433]
[1750410123551,0.0074,106090.0,106080.0,2.90824433]
[1750410124654,0.0074,106090.0,106080.0,2.92526727]
[1750410125048,0.0333,106100.0,106090.0,0.1884988]
[1750410125248,0.0333,106100.0,106090.0,0.98378121]
[1750410125542,0.001,106100.0,106090.0,1.34378121]
[1750410125751,0.001,106100.0,106090.0,1.40908121]
[1750410125955,0.001,106100.0,106090.0,1.04908121]
[1750410126155,0.0326,106100.0,106090.0,1.05008121]
[1750410126357,0.0326,106100.0,106090.0,1.05108121]
[1750410126358,0.0336,106100.0,106090.0,1.05108121]
[1750410127248,0.10883039,106100.0,106090.0,1.05108121]
[1750410127448,0.10983039,106100.0,106090.0,1.05008121]
[1750410127649,0.10983039,106100.0,106090.0,0.98478121]
[1750410127851,0.15002106,106100.0,106090.0,0.98478121]
[1750410128363,0.14902106,106100.0,106090.0,0.98378121]
[1750410128552,0.15002106,106100.0,106090.0,0.74329916]
[1750410128758,0.15002106,106100.0,106090.0,0.98778121]
[1750410130854,0.15002106,106100.0,106090.0,1.28248121]
[1750410132156,0.15002106,106100.0,106090.0,0.92168121]
[1750410132459,0.15002106,106100.0,106090.0,1.28248121]
[1750410132856,0.10983039,106100.0,106090.0,1.28248121]
[1750410133057,0.10983039,106100.0,106090.0,1.34568121]
[1750410133355,0.11023039,106100.0,106090.0,1.34568121]
[1750410134957,0.07863039,106100.0,106090.0,1.67568121]
[1750410135152,0.07823039,106100.0,106090.0,1.67568121]
[1750410135352,0.07863039,106100.0,106090.0,1.65568121]
[1750410135551,0.07863039,106100.0,106090.0,1.34568121]
[1750410136351,0.0034,106100.0,106090.0,1.65568121]
[1750410136551,0.0034,106100.0,106090.0,1.34568121]
[1750410136858,0.0034,106100.0,106090.0,1.71568121]
[1750410137055,0.0034,106100.0,106090.0,1.34568121]
[1750410139052,0.0034,106100.0,106090.0,1.92832121]
[1750410139860,0.07863039,106100.0,106090.0,1.92832121]
[1750410140665,0.07863039,106100.0,106090.0,1.34568121]
[1750410140864,0.07863039,106100.0,106090.0,1.92808121]
[1750410141162,0.07863039,106100.0,106090.0,2.23808121]
[1750410141361,0.07863039,106100.0,106090.0,1.92808121]
[1750410141557,0.07863039,106100.0,106090.0,2.27808121]
[1750410141764,0.07863039,106100.0,106090.0,1.92808121]
[1750410142167,0.07863039,106100.0,106090.0,2.23808121]
[1750410142367,0.07863039,106100.0,106090.0,1.65568121]
[1750410142762,0.07863039,106100.0,106090.0,2.23780121]
[1750410142964,0.07863039,106100.0,106090.0,1.63188121]
[1750410143161,0.10963039,106100.0,106090.0,2.18392121]
[1750410143366,0.10963039,106100.0,106090.0,1.65428121]
[1750410143664,0.10963039,106100.0,106090.0,2.23628121]
[1750410143867,0.10963039,106100.0,106090.0,2.30178121]
[1750410144767,0.10963039,106100.0,106090.0,2.29258679]
[1750410145259,0.10963039,106100.0,106090.0,2.28258679]
[1750410145462,0.10963039,106100.0,106090.0,1.92258679]
[1750410145764,0.10963039,106100.0,106090.0,1.68058679]
[1750410145961,0.10963039,106100.0,106090.0,1.67058679]
[1750410146267,0.10963039,106100.0,106090.0,2.28230679]
[1750410146567,0.10963039,106100.0,106090.0,2.25230679]
[1750410146766,0.10963039,106100.0,106090.0,1.92230679]
[1750410147065,0.10963039,106100.0,106090.0,2.29230679]
[1750410147266,0.10963039,106100.0,106090.0,2.25230679]
[1750410147467,0.10963039,106100.0,106090.0,1.92230679]
[1750410147656,0.10963039,106100.0,106090.0,1.67782474]
[1750410147968,0.10963039,106100.0,106090.0,1.92230679]
[1750410149176,0.10963039,106100.0,106090.0,2.30230679]
[1750410149462,0.10963039,106100.0,106090.0,2.23230679]
[1750410149668,0.10963039,106100.0,106090.0,1.92230679]
[1750410150071,0.10963039,106100.0,106090.0,2.29230679]
[1750410150571,0.10963039,106100.0,106090.0,2.23230679]
[1750410152572,0.10963039,106100.0,106090.0,1.92230679]
[1750410153673,0.10963039,106100.0,106090.0,2.30230679]
[1750410153872,0.10963039,106100.0,106090.0,1.92230679]
[1750410154876,0.10963039,106100.0,106090.0,1.91311237]
[1750410155075,0.10963039,106100.0,106090.0,2.26311237]
[1750410155275,0.10963039,106100.0,106090.0,1.91311237]
[1750410156974,0.10963039,106100.0,106090.0,2.25311237]
[1750410159081,0.10963039,106100.0,106090.0,1.91311237]
[1750410159473,0.10963039,106100.0,106090.0,2.22311237]
[1750410160679,0.10963039,106100.0,106090.0,1.91311237]
[1750410160983,0.10963039,106100.0,106090.0,2.25311237]
[1750410161376,0.10963039,106100.0,106090.0,1.91311237]
[1750410161577,0.10923039,106100.0,106090.0,2.28311237]
[1750410161883,0.10963039,106100.0,106090.0,1.91311237]
[1750410163391,0.12866908,106100.0,106090.0,1.91311237]
[1750410164887,0.12866908,106100.0,106090.0,1.07409201]
[1750410165085,0.38562684,106100.0,106090.0,0.45961555]
[1750410165389,0.38562684,106100.0,106090.0,1.2852176]
[1750410166489,0.38562684,106100.0,106090.0,0.7040976]
[1750410166686,0.19714514,106100.0,106090.0,1.2851776]
[1750410166894,0.19714514,106100.0,106090.0,1.6459776]
[1750410167081,0.0647,106100.0,106090.0,1.6459776]
[1750410167289,0.0651,106100.0,106090.0,1.6459776]
[1750410167893,0.15932315,106100.0,106090.0,1.6459776]
[1750410168095,0.0651,106100.0,106090.0,1.6459776]
[1750410168590,0.15931855,106100.0,106090.0,1.6459776]
[1750410169391,0.15931855,106100.0,106090.0,1.3512776]
[1750410170196,0.15931855,106100.0,106090.0,0.9904776]
[1750410170493,0.15931855,106100.0,106090.0,1.3512776]
[1750410171496,0.15931855,106100.0,106090.0,0.9904776]
[1750410173284,0.0651,106100.0,106090.0,0.9904776]
[1750410174996,0.0651,106100.0,106090.0,0.9812821]
[1750410175299,0.15931855,106100.0,106090.0,0.9812821]
[1750410176492,0.0651,106100.0,106090.0,0.9812821]
[1750410178101,0.0651,106100.0,106090.0,0.73680005]
[1750410178294,0.0651,106100.0,106090.0,0.9812821]
[1750410181201,0.2535822,106100.0,106090.0,0.9812821]
[1750410181403,0.0651,106100.0,106090.0,0.9812821]
[1750410181795,0.2535823,106100.0,106090.0,0.9812821]
[1750410182297,0.2535823,106100.0,106090.0,0.4002021]
[1750410182495,0.2535823,106100.0,106090.0,0.77358]
[1750410182496,0.70860085,106100.0,106090.0,0.77358]
[1750410182696,0.74642744,106100.0,106090.0,0.77358]
[1750410183300,0.74642744,106100.0,106090.0,0.80358]
[1750410183502,0.63671386,106100.0,106090.0,0.7186921]
[1750410183906,0.63671386,106100.0,106090.0,0.96317415]
[1750410184408,0.6143823,106100.0,106090.0,0.96317415]
[1750410185404,0.0651,106100.0,106090.0,0.96317415]
[1750410185705,0.0647,106100.0,106090.0,0.96317415]
[1750410186409,0.0651,106100.0,106090.0,0.96317415]
[1750410186905,0.0344,106100.0,106090.0,1.32397415]
[1750410187107,0.034,106100.0,106090.0,1.35517415]
[1750410187309,0.0344,106100.0,106090.0,1.51457451]
[1750410187500,0.034,106100.0,106090.0,1.51457451]
[1750410187907,0.0344,106100.0,106090.0,1.51457451]
[1750410188206,0.0344,106100.0,106090.0,1.15377451]
[1750410188411,0.0665,106100.0,106090.0,1.15377451]
[1750410190513,0.16066912,106100.0,106090.0,1.14457885]
[1750410191016,0.12856912,106100.0,106090.0,1.50537885]
[1750410191203,0.09756912,106100.0,106090.0,1.33371778]
[1750410191507,0.09756912,106100.0,106090.0,1.66049814]
[1750410191707,0.09716912,106100.0,106090.0,1.66049814]
[1750410191911,0.09756912,106100.0,106090.0,1.66049814]
[1750410192510,0.09756912,106100.0,106090.0,1.29969814]
[1750410194921,0.09756912,106100.0,106090.0,1.54405561]
[1750410197222,0.09756912,106100.0,106090.0,1.45789988]
[1750410197419,0.09756912,106100.0,106090.0,1.64639988]
[1750410200318,0.09756912,106100.0,106090.0,1.6372045]
[1750410203724,0.09756912,106100.0,106090.0,1.9980045]
[1750410204525,0.09756912,106100.0,106090.0,1.9857442]
[1750410208826,0.09756912,106100.0,106090.0,2.3057442]
[1750410209032,0.09716912,106100.0,106090.0,2.56746478]
[1750410209426,0.0034,106100.0,106090.0,2.56746478]
[1750410209627,0.003,106100.0,106090.0,2.56746478]
[1750410209836,0.07876391,106100.0,106090.0,2.56746478]
[1750410210027,0.07876391,106100.0,106090.0,2.32304502]
[1750410210227,0.07876391,106100.0,106090.0,2.56746478]
[1750410210735,0.07876391,106100.0,106090.0,2.61774502]
[1750410211835,0.07876391,106100.0,106090.0,2.62729393]
[1750410212927,0.07876391,106100.0,106090.0,2.87171369]
[1750410213229,0.0034,106100.0,106090.0,2.87171369]
[1750410213429,0.09756912,106100.0,106090.0,2.87171369]
[1750410213933,0.09756912,106100.0,106090.0,2.98809393]
[1750410214941,0.09756912,106100.0,106090.0,2.0681007]
[1750410215235,0.15925766,106100.0,106090.0,2.62240521]
[1750410215434,0.19205766,106100.0,106090.0,2.62240521]
[1750410216426,0.0979,106100.0,106090.0,2.62240521]
[1750410216622,0.0979,106100.0,106090.0,2.2428287]
[1750410216623,0.12034387,106100.0,106090.0,2.2428287]
[1750410217229,0.12034387,106100.0,106090.0,2.5628287]
[1750410217430,0.12034387,106100.0,106090.0,2.2428287]
[1750410217630,0.0979,106100.0,106090.0,2.2428287]
[1750410217840,0.22994514,106100.0,106090.0,2.2428287]
[1750410220953,0.22994514,106100.0,106090.0,1.8820287]
[1750410221452,0.0979,106100.0,106090.0,1.8820287]
[1750410222854,0.0979,106100.0,106090.0,1.1646687]
[1750410223152,0.0979,106100.0,106090.0,1.8819487]
[1750410223756,0.21007728,106120.0,106110.0,0.1884658]
[1750410224056,0.0954,106130.0,106120.0,0.188448]
[1750410224256,0.0954,106130.0,106120.0,0.69639071]
[1750410224660,0.0954,106130.0,106120.0,1.42964999]
[1750410225358,0.0964,106130.0,106120.0,1.425457]
[1750410225558,0.17202689,106130.0,106120.0,1.425457]
[1750410225957,0.17202689,106130.0,106120.0,1.489157]
[1750410226160,0.14102689,106130.0,106120.0,1.519657]
[1750410226356,0.21626875,106130.0,106120.0,1.519657]
[1750410226560,0.15286875,106130.0,106120.0,2.420297]
[1750410226757,0.15286875,106130.0,106120.0,2.455297]
[1750410226758,0.15226875,106130.0,106120.0,2.455297]
[1750410226958,0.15626875,106130.0,106120.0,1.60726667]
[1750410227260,0.15626875,106130.0,106120.0,1.98686745]
[1750410227649,0.15626875,106130.0,106120.0,1.97726667]
[1750410228948,6e-08,106130.0,106120.0,2.22149562]
[1750410229151,0.0632,106140.0,106130.0,0.1884311]
[1750410229362,0.0632,106140.0,106130.0,1.55518936]
[1750410230165,0.13844249,106140.0,106130.0,1.69174936]
[1750410230462,0.0004,106140.0,106130.0,1.69374936]
[1750410231165,0.0014,106140.0,106130.0,1.69574936]
[1750410231963,0.0014,106140.0,106130.0,2.07574936]
[1750410232464,1e-07,106140.0,106130.0,2.07574936]
[1750410232660,0.67296483,106170.0,106160.0,0.188377]
[1750410232961,0.30546689,106170.0,106160.0,0.42035149]
[1750410233159,0.63953402,106170.0,106160.0,0.42035149]
[1750410233349,0.45117482,106170.0,106160.0,0.42035149]
[1750410233552,0.35733089,106170.0,106160.0,0.42035149]
[1750410233855,0.51445935,106170.0,106160.0,0.42035149]
[1750410234063,0.24589421,106170.0,106160.0,0.42235149]
[1750410234254,0.25649808,106170.0,106160.0,0.42635149]
[1750410234655,0.07794732,106170.0,106160.0,0.78715149]
[1750410235158,0.07754732,106170.0,106160.0,0.78715149]
[1750410235462,0.07794732,106170.0,106160.0,0.78715149]
[1750410235854,0.17514732,106170.0,106160.0,0.78715149]
[1750410239363,0.17514732,106170.0,106160.0,0.94655185]
[1750410239550,0.18467658,106170.0,106160.0,0.94655185]
[1750410240660,0.17514732,106170.0,106160.0,0.94655185]
[1750410240963,0.15284569,106170.0,106160.0,1.2867808]
[1750410241463,0.15284569,106170.0,106160.0,1.30359961]
[1750410241861,0.15284569,106170.0,106160.0,1.63961066]
[1750410242961,0.15284569,106170.0,106160.0,1.62279185]
[1750410243464,0.16213144,106170.0,106160.0,1.62279185]
[1750410245963,0.16213144,106170.0,106160.0,1.01085185]
[1750410246273,0.22663144,106170.0,106160.0,1.52671185]